fUSD/lending_fUSD_20240101
["ID","MTS","AMOUNT","RATE_DAILY","PERIOD"]
[309754663,1704081052415,-500.0,0.00036438,2]
[309754664,1704081052424,-500.0,0.00036438,2]
[309754665,1704081052434,-500.0,0.00036438,2]
[309754666,1704081052443,-500.0,0.00036438,2]
[309754667,1704081052453,-321.76647796,0.00036438,2]
[309754668,1704081052462,-655.16,0.00036438,2]
[309754669,1704081052471,-500.0,0.00036438,2]
[309754670,1704081052480,-500.0,0.00036438,2]
[309754671,1704081052489,-500.0,0.00036438,2]
[309754672,1704081052499,-500.0,0.00036438,2]
[309754673,1704081052508,-500.0,0.00036438,2]
[309754674,1704081052517,-500.0,0.00036438,2]
[309754675,1704081052526,-562.46,0.00036438,2]
[309754676,1704081052536,-622.39,0.00036438,2]
[309754677,1704081052547,-500.0,0.00036438,2]
[309754678,1704081052556,-500.0,0.00036438,2]
[309754679,1704081052566,-500.0,0.00036438,2]
[309754680,1704081052576,-500.0,0.00036438,2]
[309754681,1704081052586,-500.0,0.00036438,2]
[309754682,1704081052595,-500.0,0.00036438,2]
[309754684,1704081052604,-560.17,0.00036438,2]
[309754685,1704081052616,-500.0,0.00036438,2]
[309754686,1704081052625,-500.0,0.00036438,2]
[309754687,1704081052634,-500.0,0.00036438,2]
[309754688,1704081052644,-500.0,0.00036438,2]
[309754689,1704081052653,-500.0,0.00036438,2]
[309754690,1704081052663,-500.0,0.00036438,2]
[309754691,1704081052674,-795.94,0.00036438,2]
[309754692,1704081052683,-500.0,0.00036438,2]
[309754693,1704081052694,-500.0,0.00036438,2]
[309754694,1704081052846,-534.29,0.00036438,2]
[309754695,1704081052857,-500.0,0.00036438,2]
[309754696,1704081052867,-500.0,0.00036438,2]
[309754697,1704081052877,-500.0,0.00036438,2]
[309754698,1704081052886,-500.0,0.00036438,2]
[309754699,1704081052896,-551.5,0.00036438,2]
[309754700,1704081052906,-500.0,0.00036438,2]
[309754701,1704081052915,-500.0,0.00036438,2]
[309754702,1704081052925,-500.0,0.00036438,2]
[309754703,1704081052936,-500.0,0.00036438,2]
[309754704,1704081052946,-500.0,0.00036438,2]
[309754705,1704081052955,-500.0,0.00036438,2]
[309754706,1704081052965,-500.0,0.00036438,2]
[309754707,1704081052975,-500.0,0.00036438,2]
[309754708,1704081052985,-500.0,0.00036438,2]
[309754709,1704081052994,-500.0,0.00036438,2]
[309754710,1704081053004,-500.0,0.00036438,2]
[309754711,1704081053014,-582.4,0.00036438,2]
[309754712,1704081053024,-500.0,0.00036438,2]
[309754713,1704081053033,-500.0,0.00036438,2]
[309754714,1704081053043,-964.83,0.00036438,2]
[309754715,1704081053053,-534.15,0.00036438,2]
[309754716,1704081053063,-500.0,0.00036438,2]
[309754717,1704081053073,-507.95,0.00036438,2]
[309754718,1704081053083,-500.0,0.00036438,2]
[309754719,1704081053093,-500.0,0.00036438,2]
[309754720,1704081053102,-500.0,0.00036438,2]
[309754721,1704081053112,-500.0,0.00036438,2]
[309754722,1704081053122,-500.0,0.00036438,2]
[309754723,1704081053131,-500.0,0.00036438,2]
[309754724,1704081053140,-500.0,0.00036438,2]
[309754725,1704081053149,-537.97,0.00036438,2]
[309754726,1704081053159,-500.0,0.00036438,2]
[309754727,1704081053168,-500.0,0.00036438,2]
[309754728,1704081053178,-500.0,0.00036438,2]
[309754729,1704081053187,-609.84,0.00036438,2]
[309754730,1704081053197,-500.0,0.00036438,2]
[309754731,1704081053207,-500.0,0.00036438,2]
[309754732,1704081053217,-500.0,0.00036438,2]
[309754733,1704081053226,-500.0,0.00036438,2]
[309754734,1704081053234,-515.11,0.00036438,2]
[309754735,1704081053244,-537.97501208,0.00036438,2]
[309754736,1704081053254,-500.0,0.00036438,2]
[309754737,1704081053263,-500.0,0.00036438,2]
[309754738,1704081053272,-500.0,0.00036438,2]
[309754739,1704081053282,-2076.36,0.00036438,2]
[309754740,1704081053291,-500.0,0.00036438,2]
[309754741,1704081053301,-164.14845589,0.00036438,2]
[309754742,1704081053310,-234.97276914,0.00036438,2]
[309754743,1704081053320,-158.62389182,0.00036438,2]
[309754744,1704081053330,-875.2,0.00036438,2]
[309754745,1704081053339,-500.0,0.00036438,2]
[309754746,1704081053349,-500.0,0.00036438,2]
[309754747,1704081053360,-500.0,0.00036438,2]
[309754748,1704081053370,-659.01,0.00036438,2]
[309754749,1704081053381,-643.42,0.00036438,2]
[309754750,1704081053391,-11454.7,0.00036438,5]
[309754751,1704081053401,-500.0,0.00036438,2]
[309754752,1704081053412,-500.0,0.00036438,2]
[309754753,1704081053421,-500.0,0.00036438,2]
[309754754,1704081053430,-757.19,0.00036438,2]
[309754755,1704081053439,-549.63,0.00036438,2]
[309754756,1704081053448,-500.0,0.00036438,2]
[309754757,1704081053458,-258.36007683,0.00036438,2]
[309754758,1704081053466,-500.0,0.00036438,2]
[309754759,1704081053476,-500.0,0.00036438,2]
[309754760,1704081053486,-508.7,0.00036438,2]
[309754761,1704081053495,-519.19,0.00036438,2]
[309754762,1704081053505,-555.79,0.00036438,2]
[309754763,1704081053515,-500.0,0.00036438,2]
[309754764,1704081053524,-259.64570789,0.00036438,2]
[309754765,1704081053534,-10452.74,0.00036438,30]
[309754766,1704081053544,-500.0,0.00036438,2]
[309754767,1704081053554,-158.39572693,0.00036438,2]
[309754768,1704081053564,-860.36,0.00036438,2]
[309754769,1704081053573,-500.0,0.00036438,2]
[309754770,1704081053583,-500.0,0.00036438,2]
[309754771,1704081053593,-556.9504108,0.00036438,2]
[309754772,1704081053604,-797.37,0.00036438,2]
[309754773,1704081053615,-500.0,0.00036438,2]
[309754774,1704081053626,-500.0,0.00036438,2]
[309754775,1704081053640,-585.2,0.00036438,2]
[309754776,1704081053649,-500.0,0.00036438,2]
[309754777,1704081053659,-500.0,0.00036438,2]
[309754778,1704081053668,-500.0,0.00036438,2]
[309754779,1704081053678,-500.0,0.00036438,2]
[309754780,1704081053688,-163.33918947,0.00036438,2]
[309754781,1704081053698,-1328.77,0.00036438,2]
[309754782,1704081053708,-500.0,0.00036438,2]
[309754783,1704081053718,-500.0,0.00036438,2]
[309754784,1704081053727,-500.0,0.00036438,2]
[309754785,1704081053737,-532.24932779,0.00036438,2]
[309754786,1704081053746,-500.0,0.00036438,2]
[309754787,1704081053756,-778.73,0.00036438,2]
[309754788,1704081053769,-227.3756144,0.00036438,2]
[309754789,1704081053780,-500.0,0.00036438,2]
[309754790,1704081053791,-166.37340185,0.00036438,2]
[309754791,1704081053802,-500.0,0.00036438,2]
[309754792,1704081053812,-500.0,0.00036438,2]
[309754793,1704081053821,-500.0,0.00036438,2]
[309754794,1704081053830,-502.73,0.00036438,2]
[309754795,1704081053840,-500.0,0.00036438,2]
[309754796,1704081053849,-160.93283801,0.00036438,2]
[309754797,1704081053858,-801.18,0.00036438,2]
[309754798,1704081053868,-500.0,0.00036438,2]
[309754799,1704081053878,-500.0,0.00036438,2]
[309754800,1704081053886,-502.69,0.00036438,2]
[309754801,1704081053895,-1131.95,0.00036438,2]
[309754802,1704081053905,-164.79661463,0.00036438,2]
[309754803,1704081053916,-596.54,0.00036438,2]
[309754804,1704081053925,-538.62,0.00036438,2]
[309754805,1704081053936,-500.0,0.00036438,2]
[309754806,1704081053946,-500.0,0.00036438,2]
[309754807,1704081053957,-500.62,0.00036438,2]
[309754808,1704081053967,-500.0,0.00036438,2]
[309754809,1704081053977,-694.09,0.00036438,2]
[309754810,1704081053987,-500.0,0.00036438,2]
[309754811,1704081053997,-500.0,0.00036438,2]
[309754812,1704081054007,-500.0,0.00036438,24]
[309754813,1704081054017,-500.0,0.00036438,2]
[309754814,1704081054026,-608.42,0.00036438,2]
[309754815,1704081054035,-1000.24,0.00036438,2]
[309754816,1704081054047,-500.0,0.00036438,2]
[309754817,1704081054056,-500.0,0.00036438,2]
[309754818,1704081054066,-187.75009956,0.00036438,2]
[309754819,1704081054076,-500.0,0.00036438,2]
[309754820,1704081054086,-500.0,0.00036438,2]
[309754821,1704081054096,-500.0,0.00036438,2]
[309754822,1704081054105,-500.0,0.00036438,2]
[309754823,1704081054115,-500.0,0.00036438,2]
[309754824,1704081054124,-500.0,0.00036438,2]
[309754825,1704081054133,-500.0,0.00036438,2]
[309754826,1704081054143,-500.0,0.00036438,2]
[309754827,1704081054152,-500.0,0.00036438,2]
[309754828,1704081054161,-907.50359347,0.00036438,5]
[309754829,1704081054177,-14906.60640653,0.00036438,5]
[309754830,1704081054187,-500.0,0.00036438,2]
[309754831,1704081054196,-1840.1,0.00036438,2]
[309754832,1704081054205,-500.0,0.00036438,2]
[309754833,1704081054214,-2953.93,0.00036438,2]
[309754834,1704081054225,-500.0,0.00036438,2]
[309754835,1704081054234,-500.0,0.00036438,2]
[309754836,1704081054245,-500.0,0.00036438,2]
[309754837,1704081054255,-500.0,0.00036438,2]
[309754838,1704081054265,-500.0,0.00036438,2]
[309754839,1704081054275,-500.0,0.00036438,2]
[309754840,1704081054286,-500.0,0.00036438,2]
[309754841,1704081054296,-194.09783329,0.00036438,2]
[309754842,1704081054305,-1382.77,0.00036438,2]
[309754843,1704081054316,-500.0,0.00036438,2]
[309754844,1704081054325,-500.0,0.00036438,2]
[309754845,1704081054335,-500.0,0.00036438,2]
[309754846,1704081054346,-272.10868481,0.00036438,2]
[309754847,1704081054357,-500.0,0.00036438,2]
[309754848,1704081054369,-653.08,0.00036438,2]
[309754849,1704081054379,-500.0,0.00036438,2]
[309754850,1704081054391,-500.0,0.00036438,2]
[309754851,1704081054400,-151.0,0.00036438,7]
[309754852,1704081054410,-235.435916,0.00036438,7]
[309754853,1704081054419,-235.435916,0.00036438,7]
[309754854,1704081054428,-3644.43274701,0.00036438,9]
[309754855,1704081054437,-158.43,0.00036477,2]
[309754856,1704081054446,-500.0,0.0003649,2]
[309754857,1704081054456,-205.0,0.0003649,2]
[309754858,1704081054465,-199.76,0.00036496,2]
[309754859,1704081054475,-444.44444,0.00036498,4]
[309754860,1704081054485,-5201.0,0.000365,4]
[309754861,1704081054495,-271.24083127,0.00036504,2]
[309754862,1704081054506,-159.59,0.00036548,2]
[309754863,1704081054515,-150.0,0.00036554,2]
[309754864,1704081054524,-444.44444,0.00036598,2]
[309754865,1704081054532,-18483.62,0.00036633,2]
[309754866,1704081054541,-162.92810864,0.0003664,8]
[309754867,1704081054550,-5000.0,0.00036671,2]
[309754868,1704081054559,-500.0,0.00036683,2]
[309754869,1704081054568,-200.0,0.00036695,2]
[309754870,1704081054577,-444.44444,0.00036698,4]
[309754871,1704081054586,-700.0,0.000367,13]
[309754872,1704081054595,-200.0,0.00036703,2]
[309754873,1704081054605,-3644.43274701,0.00036708,9]
[309754874,1704081054615,-500.0,0.00036711,2]
[309754875,1704081054624,-500.0,0.00036712,2]
[309754876,1704081054633,-500.0,0.00036712,2]
[309754877,1704081054642,-500.0,0.00036712,2]
[309754878,1704081054651,-500.0,0.00036712,2]
[309754879,1704081054660,-500.0,0.00036712,2]
[309754880,1704081054669,-500.0,0.00036712,2]
[309754881,1704081054678,-500.0,0.00036712,2]
[309754882,1704081054687,-655.16,0.00036712,2]
[309754883,1704081054696,-500.49680284,0.00036712,2]
[309754884,1704081054705,-500.0,0.00036712,2]
[309754885,1704081054714,-500.0,0.00036712,2]
[309754886,1704081054724,-500.0,0.00036712,2]
[309754887,1704081054734,-500.0,0.00036712,2]
[309754888,1704081054744,-500.0,0.00036712,2]
[309754889,1704081054754,-562.46,0.00036712,2]
[309754890,1704081054763,-622.39,0.00036712,2]
[309754891,1704081054774,-500.0,0.00036712,2]
[309754892,1704081054784,-500.0,0.00036712,2]
[309754893,1704081054793,-500.0,0.00036712,2]
[309754894,1704081054803,-500.0,0.00036712,2]
[309754895,1704081054814,-500.0,0.00036712,2]
[309754896,1704081054824,-500.0,0.00036712,2]
[309754897,1704081054834,-560.17,0.00036712,2]
[309754898,1704081054843,-500.0,0.00036712,2]
[309754899,1704081054853,-500.0,0.00036712,2]
[309754900,1704081054863,-500.0,0.00036712,2]
[309754901,1704081054873,-500.0,0.00036712,2]
[309754902,1704081054883,-500.0,0.00036712,2]
[309754903,1704081054893,-500.0,0.00036712,2]
[309754904,1704081054902,-795.94,0.00036712,2]
[309754905,1704081054912,-500.0,0.00036712,2]
[309754906,1704081054921,-500.0,0.00036712,2]
[309754907,1704081054931,-534.29,0.00036712,2]
[309754908,1704081054940,-500.0,0.00036712,2]
[309754909,1704081054949,-500.0,0.00036712,2]
[309754910,1704081054959,-500.0,0.00036712,2]
[309754911,1704081054968,-500.0,0.00036712,2]
[309754912,1704081054978,-551.5,0.00036712,2]
[309754913,1704081054987,-500.0,0.00036712,2]
[309754914,1704081054996,-500.0,0.00036712,2]
[309754915,1704081055006,-500.0,0.00036712,2]
[309754916,1704081055014,-500.0,0.00036712,2]
[309754917,1704081055024,-500.0,0.00036712,2]
[309754918,1704081055033,-500.0,0.00036712,2]
[309754919,1704081055042,-169.45634925,0.00036712,2]
[309754920,1704081055051,-500.0,0.00036712,2]
[309754921,1704081055061,-500.0,0.00036712,2]
[309754922,1704081055070,-500.0,0.00036712,2]
[309754923,1704081055079,-500.0,0.00036712,2]
[309754924,1704081055089,-582.4,0.00036712,2]
[309754925,1704081055099,-500.0,0.00036712,2]
[309754926,1704081055109,-500.0,0.00036712,2]
[309754927,1704081055119,-964.83,0.00036712,2]
[309754928,1704081055128,-534.15,0.00036712,2]
[309754929,1704081055137,-500.0,0.00036712,2]
[309754930,1704081055147,-507.95,0.00036712,2]
[309754931,1704081055156,-500.0,0.00036712,2]
[309754932,1704081055166,-500.0,0.00036712,2]
[309754933,1704081055176,-500.0,0.00036712,2]
[309754934,1704081055186,-500.0,0.00036712,2]
[309754935,1704081055195,-500.0,0.00036712,2]
[309754936,1704081055206,-500.0,0.00036712,2]
[309754937,1704081055215,-500.0,0.00036712,2]
[309754938,1704081055224,-537.97,0.00036712,2]
[309754939,1704081055233,-500.0,0.00036712,2]
[309754940,1704081055242,-500.0,0.00036712,2]
[309754941,1704081055251,-500.0,0.00036712,2]
[309754942,1704081055260,-609.84,0.00036712,2]
[309754943,1704081055269,-500.0,0.00036712,2]
[309754944,1704081055278,-500.0,0.00036712,2]
[309754945,1704081055287,-500.0,0.00036712,2]
[309754946,1704081055297,-500.0,0.00036712,2]
[309754947,1704081055306,-515.11,0.00036712,2]
[309754948,1704081055315,-500.0,0.00036712,2]
[309754949,1704081055324,-500.0,0.00036712,2]
[309754950,1704081055334,-500.0,0.00036712,2]
[309754951,1704081055343,-2076.36,0.00036712,2]
[309754952,1704081055352,-500.0,0.00036712,2]
[309754953,1704081055362,-875.2,0.00036712,2]
[309754954,1704081055371,-500.0,0.00036712,2]
[309754955,1704081055380,-500.0,0.00036712,2]
[309754956,1704081055389,-500.0,0.00036712,2]
[309754957,1704081055398,-659.01,0.00036712,2]
[309754958,1704081055407,-643.42,0.00036712,2]
[309754959,1704081055416,-11454.7,0.00036712,5]
[309754960,1704081055426,-500.0,0.00036712,2]
[309754961,1704081055435,-500.0,0.00036712,2]
[309754962,1704081055444,-500.0,0.00036712,2]
[309754963,1704081055453,-757.19,0.00036712,2]
[309754964,1704081055462,-549.63,0.00036712,2]
[309754965,1704081055472,-500.0,0.00036712,2]
[309754966,1704081055480,-500.0,0.00036712,2]
[309754967,1704081055489,-500.0,0.00036712,2]
[309754968,1704081055498,-508.7,0.00036712,2]
[309754969,1704081055507,-519.19,0.00036712,2]
[309754970,1704081055516,-555.79,0.00036712,2]
[309754971,1704081055526,-500.0,0.00036712,2]
[309754972,1704081055535,-10452.74,0.00036712,30]
[309754973,1704081055544,-307.45786096,0.00036712,2]
[309754974,1704081055553,-860.36,0.00036712,2]
[309754975,1704081055562,-500.0,0.00036712,2]
[309754976,1704081055571,-500.0,0.00036712,2]
[309754977,1704081055581,-797.37,0.00036712,2]
[309754978,1704081055591,-500.0,0.00036712,2]
[309754979,1704081055600,-500.0,0.00036712,2]
[309754980,1704081055612,-585.2,0.00036712,2]
[309754981,1704081055621,-500.0,0.00036712,2]
[309754982,1704081055633,-500.0,0.00036712,2]
[309754983,1704081055644,-500.0,0.00036712,2]
[309754984,1704081055654,-500.0,0.00036712,2]
[309754985,1704081055664,-1328.77,0.00036712,2]
[309754986,1704081055674,-500.0,0.00036712,2]
[309754987,1704081055685,-500.0,0.00036712,2]
[309754988,1704081055695,-500.0,0.00036712,2]
[309754989,1704081055705,-500.0,0.00036712,2]
[309754990,1704081055717,-778.73,0.00036712,2]
[309754991,1704081055726,-500.0,0.00036712,2]
[309754992,1704081055735,-500.0,0.00036712,2]
[309754993,1704081055747,-500.0,0.00036712,2]
[309754994,1704081055757,-500.0,0.00036712,2]
[309754995,1704081055766,-502.73,0.00036712,2]
[309754996,1704081055778,-500.0,0.00036712,2]
[309754997,1704081055788,-801.18,0.00036712,2]
[309754998,1704081055797,-500.0,0.00036712,2]
[309754999,1704081055807,-500.0,0.00036712,2]
[309755000,1704081055818,-1131.95,0.00036712,2]
[309755001,1704081055827,-502.69,0.00036712,2]
[309755002,1704081055838,-596.54,0.00036712,2]
[309755003,1704081055848,-538.62,0.00036712,2]
[309755004,1704081055858,-500.0,0.00036712,2]
[309755005,1704081055868,-500.0,0.00036712,2]
[309755006,1704081055878,-500.62,0.00036712,2]
[309755007,1704081055888,-500.0,0.00036712,2]
[309755008,1704081055898,-694.09,0.00036712,2]
[309755009,1704081055907,-500.0,0.00036712,2]
[309755010,1704081055917,-500.0,0.00036712,2]
[309755011,1704081055927,-500.0,0.00036712,24]
[309755012,1704081055937,-500.0,0.00036712,2]
[309755013,1704081055947,-608.42,0.00036712,2]
[309755014,1704081055957,-1000.24,0.00036712,2]
[309755015,1704081055967,-500.0,0.00036712,2]
[309755016,1704081055977,-500.0,0.00036712,2]
[309755017,1704081055986,-500.0,0.00036712,2]
[309755018,1704081055996,-500.0,0.00036712,2]
[309755019,1704081056006,-500.0,0.00036712,2]
[309755020,1704081056015,-500.0,0.00036712,2]
[309755021,1704081056024,-500.0,0.00036712,2]
[309755022,1704081056034,-500.0,0.00036712,2]
[309755023,1704081056044,-500.0,0.00036712,2]
[309755024,1704081056054,-500.0,0.00036712,2]
[309755025,1704081056064,-321.16874195,0.00036712,2]
[309755026,1704081056073,-500.0,0.00036712,2]
[309755027,1704081056218,-15814.11,0.00036712,5]
[309755028,1704081056228,-314.69325573,0.00036712,2]
[309755029,1704081056238,-1840.1,0.00036712,2]
[309755030,1704081056247,-500.0,0.00036712,2]
[309755031,1704081056257,-2953.93,0.00036712,2]
[309755032,1704081056267,-500.0,0.00036712,2]
[309755033,1704081056276,-500.0,0.00036712,2]
[309755034,1704081056286,-500.0,0.00036712,2]
[309755035,1704081056295,-500.0,0.00036712,2]
[309755036,1704081056305,-500.0,0.00036712,2]
[309755037,1704081056314,-500.0,0.00036712,2]
[309755038,1704081056324,-428.85292852,0.00036712,2]
[309755039,1704081056333,-1382.77,0.00036712,2]
[309755040,1704081056342,-500.0,0.00036712,2]
[309755041,1704081056351,-500.0,0.00036712,2]
[309755042,1704081056360,-500.0,0.00036712,2]
[309755043,1704081056372,-500.0,0.00036712,2]
[309755044,1704081056381,-653.08,0.00036712,2]
[309755045,1704081056390,-500.0,0.00036712,2]
[309755046,1704081056399,-500.0,0.00036712,2]
[309755047,1704081056409,-151.0,0.00036712,7]
[309755048,1704081056418,-235.435916,0.00036712,7]
[309755049,1704081056428,-235.435916,0.00036712,7]
[309755050,1704081056437,-444.44444,0.00036798,2]
[309755051,1704081056446,-189.78130246,0.00036798,2]
[309755052,1704081056456,-1125.14007492,0.00036798,2]
[309755053,1704081056466,-199.69414318,0.00036798,2]
[309755054,1704081056475,-398.6184802,0.00036798,2]
[309755055,1704081056484,-19222.06,0.00036798,2]
[309755056,1704081056493,-271.24083127,0.00036799,2]
[309755057,1704081056502,-4517.28554248,0.000368,5]
[309755058,1704081056512,-1000.0,0.000368,13]
[309755059,1704081056521,-1061.95929482,0.00036834,2]
[309755060,1704081056530,-416.48,0.00036879,2]
[309755061,1704081056540,-328.6,0.00036879,2]
[309755062,1704081056549,-304.85,0.00036879,2]
[309755063,1704081056559,-162.13589043,0.00036886,2]
[309755064,1704081056569,-500.0,0.00036895,2]
[309755065,1704081056579,-151.0,0.00036896,7]
[309755066,1704081056588,-235.435916,0.00036896,7]
[309755067,1704081056598,-235.435916,0.00036896,7]
[309755068,1704081056608,-194132.66180841,0.00036896,2]
[309755069,1704081056620,-444.44444,0.00036898,2]
[309755070,1704081056630,-218.46041845,0.00036899,2]
[309755071,1704081056639,-165.07304782,0.00036899,2]
[309755072,1704081056648,-500.0,0.000369,2]
[309755073,1704081056658,-980807.77616369,0.000369,3]
[309755074,1704081056710,-680.8569886,0.00033832,4]
[309755075,1704081056720,-519.94,0.000354,2]
[309755076,1704081056729,-7621.83369445,0.00035615,4]
[309755077,1704081056739,-150.01,0.00035615,2]
[309755078,1704081056748,-155.0,0.00035615,2]
[309755079,1704081056757,-48119.17616586,0.000369,3]
[309755080,1704081056770,-10991.93218859,0.000369,3]
[309755082,1704081056782,-393.333,0.000369,3]
[309755083,1704081056793,-418.8,0.000369,3]
[309755084,1704081056805,-5601.28992047,0.000369,3]
[309755089,1704081070229,257.32733014,0.00023,2]
[309755090,1704081070255,257.32733014,0.00023,2]
[309755091,1704081070280,257.32733014,0.00023,2]
[309755092,1704081070305,257.32733014,0.00023,2]
[309755093,1704081070329,257.32733014,0.00023,2]
[309755094,1704081070352,257.32733014,0.00023,2]
[309755095,1704081070378,1421311.96734871,0.00023,2]
[309755101,1704081229839,1002434.19558585,0.00023,2]
[309755142,1704082232211,-417.95209149,0.00027898,2]
[309755143,1704082232221,-1550.89850592,0.00027899,2]
[309755145,1704082232233,-1810.89364178,0.00027899,2]
[309755153,1704082232317,-1291.12276416,0.00027899,2]
[309755155,1704082232329,-1019.90702358,0.00027899,2]
[309755157,1704082232338,-1905.0,0.000279,2]
[309755159,1704082232347,-169.79,0.00031975,2]
[309755160,1704082232357,-4692.94035055,0.00032,4]
[309755161,1704082232381,-1187.70046747,0.00032,4]
[309755166,1704082232469,-383.09950652,0.00032,4]
[309755167,1704082232481,-478.80228,0.00032,4]
[309755243,1704082238344,-155.0,0.00031974,2]
[309755244,1704082238355,-5060.83662658,0.00032,4]
[309755245,1704082238365,-772.92,0.0003371,2]
[309755246,1704082238377,-158.43,0.00033728,2]
[309755247,1704082238387,-250.0,0.00033915,111]
[309755248,1704082238398,-152.89,0.00033935,2]
[309755249,1704082238410,-219.14,0.00033944,2]
[309755250,1704082238421,-1000.0,0.00034,4]
[309755251,1704082238432,-499.99,0.00034001,2]
[309755252,1704082238442,-227.08,0.00034002,2]
[309755253,1704082238452,-161.09,0.0003414,2]
[309755254,1704082238461,-169.79,0.00034238,2]
[309755255,1704082238471,-333.33333,0.00034398,2]
[309755256,1704082238482,-333.33333,0.00034498,2]
[309755257,1704082238492,-693.37623314,0.00034589,2]
[309755258,1704082238501,-333.33333,0.00034598,2]
[309755259,1704082238511,-333.33333,0.00034698,2]
[309755260,1704082238521,-333.33333,0.00034798,2]
[309755261,1704082238533,-1000.0,0.00034876,2]
[309755262,1704082238545,-432.15346366,0.00034876,2]
[309755263,1704082238556,-333.33333,0.00034898,2]
[309755264,1704082238565,-2601.0858,0.000349,2]
[309755265,1704082238574,-7413.5349,0.000349,2]
[309755266,1704082238583,-19230.26256477,0.000349,2]
[309755267,1704082238637,-7287.33443523,0.000349,2]
[309755268,1704082238649,-2500.0,0.000349,2]
[309755269,1704082238660,-163.03974241,0.00034976,7]
[309755270,1704082238670,-393.85931172,0.00034976,2]
[309755271,1704082238679,-491.04,0.0003499,10]
[309755272,1704082238688,-409.2,0.0003499,10]
[309755273,1704082238697,-333.33333,0.00034998,2]
[309755274,1704082238706,-10189.32721987,0.00035,7]
[309755275,1704082238717,-1285.22235789,0.00035,7]
[309755276,1704082238728,-951.26132272,0.00035,7]
[309755277,1704082238739,-5511.37175894,0.00035,7]
[309755278,1704082238750,-2256.53820031,0.00035,7]
[309755279,1704082238761,-663.71140911,0.00035,7]
[309755280,1704082238772,-11706.33951874,0.00035,7]
[309755281,1704082238783,-577.1627204,0.00035,7]
[309755282,1704082238803,-679.21665167,0.00035,7]
[309755283,1704082238813,-119826.94141614,0.00035,7]
[309755285,1704082240845,-6591.00549389,0.000349,2]
[309755286,1704082240856,-628.71996202,0.000349,2]
[309755287,1704082240935,-691.31730098,0.000349,2]
[309755288,1704082241536,-263.66478443,0.000349,2]
[309755289,1704082241590,-18342.88945868,0.000349,2]
[309755290,1704082241600,-47253.74268707,0.00035,7]
[309755291,1704082241612,-690.46512959,0.00035,7]
[309755292,1704082241646,-2203.4,0.00035,7]
[309755293,1704082241704,-1048.582763,0.00035,7]
[309755295,1704082241715,-6240.2643246,0.00035,7]
[309755300,1704082243192,-517.49145037,0.00035,7]
[309755302,1704082243303,-628.96478869,0.00035,7]
[309755303,1704082243412,-512.45846107,0.00035,7]
[309755304,1704082243423,-3330.0,0.00035,7]
[309755305,1704082243468,-2101.23791412,0.00035,7]
[309755306,1704082243479,-4831.96465633,0.00035,7]
[309755307,1704082243577,-16878.46227335,0.00035,7]
[309755539,1704082246283,-322.8916,0.00035,7]
[309755540,1704082246295,-25969.36695573,0.00035,7]
[309755541,1704082246338,-1565.29012661,0.00035,7]